Workbook

Sheet Лист1
A1: Школа | F1: Утвердил: | G1: должность
A2: Типовое примерное меню приготавливаемых блюд | G2: фамилия
A3: Возрастная категория | G3: дата
A5: Неделя | B5: День недели | C5: Прием пищи | D5: Раздел меню | E5: Блюда | F5: Вес блюда, г | G5: Белки | H5: Жиры | I5: Углеводы | J5: Калорийность | K5: № рецептуры | L5: Цена
A6: 1 | B6: 1 | C6: Завтрак | D6: гор.блюдо | E6: Котлеты, биточки мясные с томатным соусом | F6: 90 | G6: 10.78 | H6: 10.75 | I6: 12.12 | J6: 188.95 | K6: 445.12 | L6: 48.07
E7: Макаронные изделия отварные с маслом | F7: 175 | G7: 7.18 | H7: 4.64 | I7: 42.01 | J7: 238.68 | K7: 211.9 | L7: 17.09
D8: гор.напиток | E8: Чай с сахаром | F8: 200 | I8: 9.98 | J8: 39.9 | K8: 283 | L8: 1.9
D9: хлеб | E9: Хлеб пшеничный обогащенный витаминами для детского питания | F9: 35 | G9: 2.8 | H9: 0.35 | I9: 19.25 | J9: 91 | K9: 1.27 | L9: 4.03
D13: итого | G13: =SUM(G6:G12) -> 20.76 | H13: =SUM(H6:H12) -> 15.74 | I13: =SUM(I6:I12) -> 83.36 | J13: =SUM(J6:J12) -> 558.53 | L13: =SUM(L6:L12) -> 71.09
A14: =A6 -> 1 | B14: =B6 -> 1 | C14: Обед | D14: закуска
D15: 1 блюдо | E15: Рассольник с перловой крупой и сметаной | F15: 205 | G15: 1.54 | H15: 4.97 | I15: 10.15 | J15: 91.79 | K15: 54.04 | L15: 10.85
D16: 2 блюдо | E16: Рыба запеченная с овощами | F16: 90 | G16: 8.57 | H16: 6.77 | I16: 3.61 | J16: 110.24 | K16: 591.18 | L16: 31.13
D17: гарнир | E17: Рис отварной с маслом | F17: 155 | G17: 3.87 | H17: 4.17 | I17: 41.03 | J17: 217.13 | K17: 58.11 | L17: 18.70
D18: напиток | E18: Чай витаминизированный | F18: 200 | I18: 9.4 | J18: 38.5 | K18: 282.11 | L18: 8.54
D19: хлеб бел. | E19: Хлеб пшеничный обогащенный витаминами для детского питания | F19: 45 | G19: 3.6 | H19: 0.45 | I19: 24.75 | J19: 117 | K19: 420.05 | L19: 4.08
D20: хлеб черн. | E20: Хлеб ржано-пшеничный для детского питания | F20: 45 | G20: 3.6 | H20: 0.45 | I20: 20.7 | J20: 99 | K20: 421.13 | L20: 6.43
D21: сладкое
D23: итого | G23: =SUM(G14:G22) -> 21.18 | H23: 16.81 | I23: 109.64 | J23: 673.66 | L23: 79.73
A24: =A6 -> 1 | B24: =B6 -> 1 | C24: Итого за день: | G24: =G13:L13+G23:L23 -> 41.94 | H24: =H23+H13 -> 32.55 | I24: =I23+I13 -> 193 | J24: =J13+J23 -> 1232.19
A25: 1 | B25: 2 | C25: Завтрак | D25: гор.блюдо | E25: Каша молочная " Дружба " с маслом | F25: 155 | G25: 4.89 | H25: 6.73 | I25: 26.45 | J25: 186.51 | K25: 493.02 | L25: 14.74
E26: Сыр ( порциями ) | F26: 10 | G26: 2.63 | H26: 2.7 | J26: 35.00 | K26: 27.01 | L26: 13.20
D28: гор.напиток | E28: Чай витаминизированный | F28: 200 | I28: 9.4 | J28: 38.5 | K28: 282.15 | L28: 8.54
D29: хлеб | E29: Хлеб пшеничный обогащенный витаминами для детского питания | F29: 30 | G29: 3.2 | H29: 0.40 | I29: 22.00 | J29: 104 | K29: 420.02 | L29: 5.81
D30: фрукты
D31: булочное
D32: сладкое | E32: Кисломолочный продукт для детского питания | F32: 100 | G32: 3.20 | H32: 3.20 | I32: 9.10 | J32: 78.00 | K32: 476.01 | L32: 28.80
D33: итого | G33: =SUM(G25:G32) -> 13.92 | H33: =SUM(H25:H32) -> 12.99 | I33: =SUM(I25:I32) -> 66.95 | J33: =SUM(J25:J32) -> 442.01 | L33: =SUM(L25:L32) -> 71.09
A34: =A25 -> 1 | B34: =B25 -> 2 | C34: Обед | D34: закуска
D35: 1 блюдо | E35: Суп картофельный с горохом | F35: 250 | G35: 5.91 | H35: 4.55 | I35: 23.49 | J35: 158.55 | K35: 129.20 | L35: 13.55
D36: 2 блюдо | E36: Жаркое по-домашнему из мяса птицы | F36: 160 | G36: 10.25 | H36: 12.52 | I36: 20.65 | J36: 236.05 | K36: 684.55 | L36: 47.13
D37: гарнир
D38: напиток | E38: Напиток лимонный | F38: 200 | G38: 0.06 | H38: 0.01 | I38: 20.17 | J38: 82.2 | K38: 296.00 | L38: 8.54
D39: хлеб бел. | E39: Хлеб пшеничный обогащенный витаминами для детского питания | F39: 45 | G39: 3.6 | H39: 0.45 | I39: 24.75 | J39: 117 | K39: 420.05 | L39: 4.08
D40: хлеб черн. | E40: Хлеб ржано-пшеничный для детского питания | F40: 45 | G40: 3.6 | H40: 0.45 | I40: 20.7 | J40: 99 | K40: 421.13 | L40: 6.43
D43: итого | G43: =SUM(G35:G42) -> 23.42 | H43: =SUM(H35:H42) -> 17.98 | I43: =SUM(I35:I42) -> 109.76 | J43: =SUM(J35:J42) -> 692.78 | L43: =SUM(L35:L42) -> 79.73
A44: =A25 -> 1 | B44: =B25 -> 2 | C44: Итого за день: | G44: =G43+G33 -> 37.34 | H44: =H33+H43 -> 30.97 | I44: =I33+I43 -> 176.71 | J44: =J43+J33 -> 1134.79
A45: 1 | B45: 3 | C45: Завтрак | D45: гор.блюдо | E45: Гуляш из мяса птицы | F45: 60 | G45: 9.26 | H45: 12.31 | I45: 2.27 | J45: 156.43 | K45: 233.97 | L45: 30.02
E46: Каша гречневая вязкая с маслом | F46: 134 | G46: 4.13 | H46: 3.97 | I46: 18.61 | J46: 126.54 | K46: 175.11 | L46: 12.8
D47: гор.напиток | E47: Чай с сахаром | F47: 200 | I47: 9.98 | J47: 39.9 | K47: 283.00 | L47: 1.9
D48: хлеб | E48: Хлеб пшеничный обогащенный витаминами для детского питания | F48: 30 | G48: 2.4 | H48: 0.30 | I48: 16.50 | J48: 78 | K48: 1.10 | L48: 4.35
D49: сладкое
E50: Яблоко | F50: 110 | G50: 0.44 | H50: 0.44 | I50: 17.27 | J50: 74.80 | K50: 38.85 | L50: 22.00
D52: итого | G52: =SUM(G45:G51) -> 16.23 | H52: =SUM(H45:H51) -> 17.02 | I52: =SUM(I45:I51) -> 64.63 | J52: =SUM(J45:J51) -> 475.67 | L52: =SUM(L45:L51) -> 71.09
A53: =A45 -> 1 | B53: =B45 -> 3 | C53: Обед | D53: закуска
D54: 1 блюдо | E54: Щи из свежей капусты со сметаной | F54: 255 | G54: 2.02 | H54: 5.01 | I54: 10.92 | J54: 96.85 | K54: 53.08 | L54: 16.13
D55: 2 блюдо | E55: Плов из мяса птицы | F55: 160 | G55: 12.67 | H55: 17.62 | I55: 31.04 | J55: 332.96 | K55: 131.07 | L55: 42.82
D56: гарнир
D57: напиток | E57: Чай витаминизированный | F57: 200 | I57: 9.4 | J57: 38.5 | K57: 282.11 | L57: 8.54
D58: хлеб бел. | E58: Хлеб пшеничный обогащенный витаминами для детского питания | F58: 40 | G58: 3.2 | H58: 0.40 | I58: 22.00 | J58: 104 | K58: 420.02 | L58: 5.81
D59: хлеб черн. | E59: Хлеб ржано-пшеничный для детского питания | F59: 45 | G59: 3.6 | H59: 0.45 | I59: 20.7 | J59: 99 | K59: 421.13 | L59: 6.43
D60: сладкое
D62: итого | G62: =SUM(G54:G61) -> 21.49 | H62: =SUM(H54:H61) -> 23.48 | I62: =SUM(I54:I61) -> 94.06 | J62: =SUM(J54:J61) -> 671.31 | L62: =SUM(L54:L61) -> 79.73
A63: =A45 -> 1 | B63: =B45 -> 3 | C63: Итого за день: | G63: =G62+G52 -> 37.72 | H63: =H62+H52 -> 40.50 | I63: =I62+I52 -> 158.69 | J63: =J62+J52 -> 1146.98
A64: 1 | B64: 4 | C64: Завтрак | D64: гор.блюдо | E64: Каша пшенная молочная вязкая с маслом | F64: 150 | G64: 6.26 | H64: 6.35 | I64: 31.31 | J64: 208.08 | K64: 470.63 | L64: 16.26
E65: Сыр (порциями) | F65: 10 | G65: 2.63 | H65: 2.66 | J65: 35 | K65: 27.01 | L65: 13.2
D66: гор.напиток | E66: Чай с сахаром | F66: 200 | I66: 10.0 | J66: 39.9 | K66: 283.00 | L66: 1.90
D67: хлеб | E67: Хлеб пшеничный обогащенный витаминами для детского питания | F67: 40 | G67: 3.2 | H67: 0.40 | I67: 22.00 | J67: 104 | K67: 420.02 | L67: 5.81
D68: фрукты
D69: булочное
E70: Сок фруктовый | F70: 200 | G70: 1 | H70: 0.2 | I70: 20.2 | J70: 92 | K70: 86.02 | L70: 33.92
D71: итого | G71: =SUM(G64:G70) -> 13.09 | H71: =SUM(H64:H70) -> 9.61 | I71: =SUM(I64:I70) -> 83.49 | J71: =SUM(J64:J70) -> 478.98 | L71: =SUM(L64:L70) -> 71.09
A72: =A64 -> 1 | B72: =B64 -> 4 | C72: Обед | D72: закуска
D73: 1 блюдо | E73: Суп с макаронными изделиями | F73: 200 | G73: 2.62 | H73: 2.52 | I73: 18.50 | J73: 107.16 | K73: 66.91 | L73: 12.66
D74: 2 блюдо | E74: Тефтели из говядины с томатным соусом | F74: 90 | G74: 9.4 | H74: 10.38 | I74: 7.74 | J74: 162.42 | K74: 502.25 | L74: 30.91
D75: гарнир | E75: Картофельное пюре* | F75: 150 | G75: 3.79 | H75: 4.04 | I75: 31.15 | J75: 176.32 | K75: 138.4 | L75: 18.40
D76: напиток | E76: Компот из смеси сухофруктов | F76: 200 | G76: 0.44 | H76: 0.09 | I76: 23.14 | J76: 89.9 | K76: 293.03 | L76: 9.12
D77: хлеб бел. | E77: Хлеб пшеничный обогащенный витаминами для детского питания | F77: 30 | G77: 2.4 | H77: 0.3 | I77: 16.50 | J77: 78 | K77: 1.10 | L77: 4.35
D78: хлеб черн. | E78: Хлеб ржано-пшеничный для детского питания | F78: 30 | G78: 2.4 | H78: 0.3 | I78: 13.8 | J78: 66 | K78: 1.2 | L78: 4.29
D81: итого | G81: =SUM(G73:G80) -> 21.05 | H81: =SUM(H73:H80) -> 17.63 | I81: =SUM(I73:I80) -> 110.83 | J81: =SUM(J73:J80) -> 679.80 | L81: =SUM(L73:L80) -> 79.73
A82: =A64 -> 1 | B82: =B64 -> 4 | C82: Итого за день: | G82: =G81+G71 -> 34.14 | H82: =H81+H71 -> 27.24 | I82: =I81+I71 -> 194.32 | J82: =J81+J71 -> 1158.78
A83: 1 | B83: 5 | C83: Завтрак | D83: гор.блюдо | E83: Каша рисовая молочная вязкая с маслом | F83: 155 | G83: 4.62 | H83: 6.37 | I83: 32.45 | J83: 206.75 | K83: 181.00 | L83: 13.86
E84: Масло сливочное | F84: 8 | G84: 0.06 | H84: 5.80 | I84: 0.10 | J84: 52.88 | K84: 401.08 | L84: 14.08
D85: гор.напиток | E85: Чай витаминизированный | F85: 200 | I85: 9.40 | J85: 38.50 | K85: 282.11 | L85: 8.54
D86: хлеб | E86: Хлеб пшеничный обогащенный витаминами для детского питания | F86: 40 | G86: 3.20 | H86: 0.40 | I86: 22.00 | J86: 104.00 | K86: 420.02 | L86: 5.81
D87: фрукты
D88: закуска
E89: Кисломолочный продукт для детского питания | F89: 100 | G89: 3.20 | H89: 3.20 | I89: 9.10 | J89: 78.00 | K89: 476.01 | L89: 28.80
D91: итого | G91: =SUM(G83:G90) -> 11.08 | H91: =SUM(H83:H90) -> 15.77 | I91: =SUM(I83:I90) -> 73.05 | J91: =SUM(J83:J90) -> 480.13 | L91: =SUM(L83:L90) -> 71.09
A92: =A83 -> 1 | B92: =B83 -> 5 | C92: Обед | D92: закуска
D93: 1 блюдо | E93: Рассольник с перловой крупой и сметаной | F93: 205 | G93: 1.54 | H93: 4.97 | I93: 10.15 | J93: 91.79 | K93: 54.04 | L93: 10.85
D94: 2 блюдо | E94: Гуляш из мяса птицы | F94: 90 | G94: 12.47 | H94: 16.35 | I94: 3.72 | J94: 211.41 | K94: 96.23 | L94: 42.23
D95: гарнир | E95: Макаронные изделия отварные с маслом | F95: 155 | G95: 6.34 | H95: 4.52 | I95: 37.08 | J95: 214.49 | K95: 211.05 | L95: 16.11
D96: напиток | E96: Чай с сахаром | F96: 200 | I96: 9.98 | J96: 39.90 | K96: 283.00 | L96: 1.90
D97: хлеб бел. | E97: Хлеб пшеничный обогащенный витаминами для детского питания | F97: 30 | G97: 2.40 | H97: 0.3 | I97: 16.50 | J97: 78.00 | K97: 1.10 | L97: 4.35
D98: хлеб черн. | E98: Хлеб ржано-пшеничный для детского питания | F98: 30 | G98: 2.40 | H98: 0.3 | I98: 13.80 | J98: 66.00 | K98: 1.20 | L98: 4.29
D99: булочное
D101: итого | G101: =SUM(G93:G100) -> 25.15 | H101: =SUM(H93:H100) -> 26.44 | I101: =SUM(I93:I100) -> 91.23 | J101: =SUM(J93:J100) -> 701.59 | L101: =SUM(L93:L100) -> 79.73
A102: =A83 -> 1 | B102: =B83 -> 5 | C102: Итого за день: | G102: =G101+G91 -> 36.23 | H102: =H101+H91 -> 42.21 | I102: =I101+I91 -> 164.28 | J102: =J101+J91 -> 1181.72
A103: 2 | B103: 1 | C103: Завтрак | D103: гор.блюдо | E103: Макаронные изделия с тертым сыром | F103: 150 | G103: 8.32 | H103: 7.81 | I103: 33.21 | J103: 237.09 | K103: 211.48 | L103: 41.38
D105: гор.напиток | E105: Чай с сахаром | F105: 200 | I105: 9.98 | J105: 39.90 | K105: 283 | L105: 1.90
D106: хлеб | E106: Хлеб пшеничный обогащенный витаминами для детского питания | F106: 40 | G106: 3.20 | H106: 0.4 | I106: 22.00 | J106: 104.00 | K106: 420.02 | L106: 5.81
D107: фрукты
E108: Яблоко | F108: 110 | G108: 0.44 | H108: 0.44 | I108: 17.27 | J108: 74.80 | K108: 38.85 | L108: 22.00
D110: итого | G110: =SUM(G103:G109) -> 11.96 | H110: =SUM(H103:H109) -> 8.65 | I110: =SUM(I103:I109) -> 82.46 | J110: =SUM(J103:J109) -> 455.79 | L110: =SUM(L103:L109) -> 71.09
A111: =A103 -> 2 | B111: =B103 -> 1 | C111: Обед | D111: закуска
D112: 1 блюдо | E112: Суп картофельный с горохом | F112: 250 | G112: 5.91 | H112: 4.55 | I112: 23.49 | J112: 158.55 | K112: 129.20 | L112: 13.55
D113: 2 блюдо | E113: Биточки из мяса птицы с томатным соусом | F113: 90 | G113: 11.97 | H113: 13.8 | I113: 12.52 | J113: 222.17 | K113: 502.56 | L113: 40.74
D114: гарнир | E114: Каша рисовая вязкая с маслом | F114: 155 | G114: 2.47 | H114: 3.99 | I114: 24.97 | J114: 146.27 | K114: 181.48 | L114: 14.90
D115: напиток | E115: Чай с сахаром | F115: 200 | I115: 9.98 | J115: 39.9 | K115: 283.00 | L115: 1.90
D116: хлеб бел. | E116: Хлеб пшеничный обогащенный витаминами для детского питания | F116: 30 | G116: 2.40 | H116: 0.3 | I116: 16.50 | J116: 78.00 | K116: 1.10 | L116: 4.35
D117: хлеб черн. | E117: Хлеб ржано-пшеничный для детского питания | F117: 30 | G117: 2.40 | H117: 0.3 | I117: 13.80 | J117: 66.00 | K117: 1.20 | L117: 4.29
D120: итого | G120: =SUM(G112:G119) -> 25.15 | H120: =SUM(H112:H119) -> 22.95 | I120: =SUM(I112:I119) -> 101.26 | J120: =SUM(J112:J119) -> 710.89 | L120: =SUM(L112:L119) -> 79.73
A121: =A103 -> 2 | B121: =B103 -> 1 | C121: Итого за день: | G121: =G120+G110 -> 37.11 | H121: =H120+H110 -> 31.60 | I121: =I120+I110 -> 183.72 | J121: =J120+J110 -> 1166.68
A122: 2 | B122: 2 | C122: Завтрак | D122: гор.блюдо | E122: Каша пшенная молочная вязкая с маслом | F122: 150 | G122: 6.26 | H122: 6.35 | I122: 31.31 | J122: 208.08 | K122: 470.63 | L122: 18.63
E124: Масло сливочное | F124: 8 | G124: 0.06 | H124: 5.8 | I124: 0.1 | J124: 52.88 | K124: 401.08 | L124: 14.08
D125: гор.напиток | E125: Чай с лимоном и сахаром | F125: 207 | I125: 9.98 | J125: 39.9 | K125: 285.05 | L125: 4.51
D126: хлеб | E126: Хлеб пшеничный обогащенный витаминами для детского питания | F126: 35 | G126: 2.80 | H126: 0.35 | I126: 19.25 | J126: 91.00 | K126: 1.3 | L126: 5.07
D127: фрукты
D128: булочное
E129: Кисломолочный продукт для детского питания | F129: 100 | G129: 3.2 | H129: 3.2 | I129: 9.1 | J129: 78 | K129: 476.01 | L129: 28.80
D130: итого | G130: =SUM(G122:G129) -> 12.32 | H130: =SUM(H122:H129) -> 15.70 | I130: =SUM(I122:I129) -> 69.74 | J130: =SUM(J122:J129) -> 469.86 | L130: =SUM(L122:L129) -> 71.09
A131: =A122 -> 2 | B131: =B122 -> 2 | C131: Обед | D131: закуска
D132: 1 блюдо | E132: Суп-лапша | F132: 250 | G132: 7.61 | H132: 3.34 | I132: 44.10 | J132: 237.43 | K132: 66.88 | L132: 10.18
D133: 2 блюдо | E133: Жаркое по-домашнему из мяса птицы | F133: 160 | G133: 10.25 | H133: 12.52 | I133: 20.65 | J133: 236.05 | K133: 684.55 | L133: 57.14
D134: гарнир
D135: напиток | E135: Чай с сахаром | F135: 200 | I135: 9.98 | J135: 39.9 | K135: 283.00 | L135: 1.90
D136: хлеб бел. | E136: Хлеб пшеничный обогащенный витаминами для детского питания | F136: 45 | G136: 3.60 | H136: 0.45 | I136: 24.75 | J136: 117.00 | K136: 420.05 | L136: 4.08
D137: хлеб черн. | E137: Хлеб ржано-пшеничный для детского питания | F137: 45 | G137: 3.60 | H137: 0.45 | I137: 20.70 | J137: 99.00 | K137: 421.13 | L137: 6.43
D140: итого | G140: =SUM(G132:G139) -> 25.06 | H140: =SUM(H132:H139) -> 16.76 | I140: =SUM(I132:I139) -> 120.18 | J140: =SUM(J132:J139) -> 729.38 | L140: =SUM(L132:L139) -> 79.73
A141: =A122 -> 2 | B141: =B122 -> 2 | C141: Итого за день: | G141: =G140+G130 -> 37.38 | H141: =H140+H130 -> 32.46 | I141: =I140+I130 -> 189.92 | J141: =J140+J130 -> 1199.24
A142: 2 | B142: 3 | C142: Завтрак | D142: гор.блюдо | E142: Плов из мяса птицы | F142: 150 | G142: 14.3 | H142: 19.29 | I142: 31.36 | J142: 356.6 | K142: 131.01 | L142: 34.74
D144: гор.напиток | E144: Чай витаминизированный | F144: 200 | I144: 9.4 | J144: 38.5 | K144: 282.15 | L144: 8.54
D145: хлеб | E145: Хлеб пшеничный обогащенный витаминами для детского питания | F145: 40 | G145: 3.2 | H145: 0.4 | I145: 22.0 | J145: 104 | K145: 420.0 | L145: 5.81
D146: фрукты | E146: Яблоко | F146: 110 | G146: 0.44 | H146: 0.44 | I146: 17.27 | J146: 74.80 | K146: 38.85 | L146: 22.00
D149: итого | G149: =SUM(G142:G148) -> 17.97 | H149: =SUM(H142:H148) -> 20.13 | I149: =SUM(I142:I148) -> 80.03 | J149: =SUM(J142:J148) -> 573.92 | L149: =SUM(L142:L148) -> 71.09
A150: =A142 -> 2 | B150: =B142 -> 3 | C150: Обед | D150: закуска
D151: 1 блюдо | E151: Рассольник с перловой крупой и сметаной | F151: 205 | G151: 1.54 | H151: 4.97 | I151: 10.15 | J151: 91.79 | K151: 54.04 | L151: 10.85
D152: 2 блюдо | E152: Котлеты, биточки мясная с томатным соусом | F152: 90 | G152: 10.78 | H152: 10.75 | I152: 12.12 | J152: 188.95 | K152: 445.12 | L152: 35.59
D153: гарнир | E153: Макаронные изделия отварные с маслом | F153: 155 | G153: 6.34 | H153: 4.52 | I153: 37.08 | J153: 214.49 | K153: 211.05 | L153: 16.11
D154: напиток | E154: Чай витаминизированный | F154: 200 | I154: 9.40 | J154: 38.50 | K154: 282.15 | L154: 8.54
D155: хлеб бел. | E155: Хлеб пшеничный обогащенный витаминами для детского питания | F155: 30 | G155: 2.40 | H155: 0.30 | I155: 16.50 | J155: 78.00 | K155: 1.1 | L155: 4.35
D156: хлеб черн. | E156: Хлеб ржано-пшеничный для детского питания | F156: 30 | G156: 2.40 | H156: 0.30 | I156: 13.80 | J156: 66.00 | K156: 1.2 | L156: 4.29
D159: итого | G159: =SUM(G151:G158) -> 23.46 | H159: =SUM(H151:H158) -> 20.84 | I159: =SUM(I151:I158) -> 99.05 | J159: =SUM(J151:J158) -> 677.73 | L159: =SUM(L151:L158) -> 79.73
A160: =A142 -> 2 | B160: =B142 -> 3 | C160: Итого за день: | G160: =G159+G149 -> 41.43 | H160: =H159+H149 -> 40.97 | I160: =I159+I149 -> 179.08 | J160: =J159+J149 -> 1251.65
A161: 2 | B161: 4 | C161: Завтрак | D161: гор.блюдо | E161: Гуляш из мяса птицы | F161: 60 | G161: 9.26 | H161: 12.31 | I161: 2.27 | J161: 156.43 | K161: 233.97 | L161: 17.54
E162: Макаронные изделия отварные с маслом | F162: 134 | G162: 5.49 | H162: 3.67 | I162: 32.13 | J162: 183.69 | K162: 211.00 | L162: 13.38
D163: гор.напиток | E163: Чай с сахаром | F163: 200 | I163: 9.98 | J163: 39.90 | K163: 283.00 | L163: 1.90
D164: хлеб | E164: Хлеб пшеничный обогащенный витаминами для детского питания | F164: 30 | G164: 2.4 | H164: 0.3 | I164: 16.50 | J164: 78.00 | K164: 1.1 | L164: 4.35
D165: фрукты
E166: Сок фруктовый | F166: 200 | G166: 1.00 | H166: 0.20 | I166: 20.20 | J166: 92.00 | K166: 86.02 | L166: 33.92
D168: итого | G168: =SUM(G161:G167) -> 18.15 | H168: =SUM(H161:H167) -> 16.48 | I168: =SUM(I161:I167) -> 81.08 | J168: =SUM(J161:J167) -> 550.02 | L168: =SUM(L161:L167) -> 71.09
A169: =A161 -> 2 | B169: =B161 -> 4 | C169: Обед | D169: закуска
D170: 1 блюдо | E170: Борщ с белокочанной капустой со сметаной | F170: 205 | G170: 1.07 | H170: 4.05 | I170: 5.2 | J170: 62.20 | K170: 56.64 | L170: 13.57
D171: 2 блюдо | E171: Биточки из мяса птицы с томатным соусом | F171: 90 | G171: 11.97 | H171: 13.81 | I171: 12.52 | J171: 222.17 | K171: 502.56 | L171: 32.80
D172: гарнир | E172: Каша гречневая вязкая с маслом | F172: 155 | G172: 4.77 | H172: 4.86 | I172: 21.48 | J172: 148.55 | K172: 302.00 | L172: 15.46
D173: напиток | E173: Напиток лимонный | F173: 200 | G173: 0.06 | H173: 0.01 | I173: 20.17 | J173: 82.18 | K173: 296.00 | L173: 8.54
D174: хлеб бел. | E174: Хлеб пшеничный обогащенный витаминами для детского питания | F174: 30 | G174: 2.4 | H174: 0.3 | I174: 16.5 | J174: 78.00 | K174: 1.1 | L174: 4.35
D175: хлеб черн. | E175: Хлеб ржано-пшеничный для детского питания | F175: 35 | G175: 2.8 | H175: 0.35 | I175: 16.1 | J175: 77.00 | K175: 421.1 | L175: 5.01
D178: итого | G178: =SUM(G170:G177) -> 23.07 | H178: =SUM(H170:H177) -> 23.38 | I178: =SUM(I170:I177) -> 91.97 | J178: =SUM(J170:J177) -> 670.10 | L178: =SUM(L170:L177) -> 79.73
A179: =A161 -> 2 | B179: =B161 -> 4 | C179: Итого за день: | G179: =G178+G168 -> 41.22 | H179: =H178+H168 -> 39.86 | I179: =I178+I168 -> 173.05 | J179: =J178+J168 -> 1220.12
A180: 2 | B180: 5 | C180: Завтрак | D180: гор.блюдо | E180: Мясо птицы, припущенное с овощами | F180: 60 | G180: 9.56 | H180: 11.94 | I180: 3.83 | J180: 160.94 | K180: 108.91 | L180: 16.58
E181: Каша гречневая вязкая с маслом | F181: 134 | G181: 4.13 | H181: 3.97 | I181: 18.61 | J181: 127 | K181: 175.11 | L181: 12.82
D183: гор.напиток | E183: Чай витаминизированный | F183: 200 | I183: 9.4 | J183: 38.5 | K183: 282.15 | L183: 8.54
D184: хлеб | E184: Хлеб пшеничный обогащенный витаминами для детского питания | F184: 30 | G184: 2.40 | H184: 0.3 | I184: 16.5 | J184: 78 | K184: 1.10 | L184: 4.35
D185: фрукты
D186: булочное
E187: Кисломолочный продукт для детского питания | F187: 100 | G187: 3.20 | H187: 3.2 | I187: 9.1 | J187: 78 | K187: 476.01 | L187: 28.80
D188: итого | G188: =SUM(G180:G187) -> 19.29 | H188: =SUM(H180:H187) -> 19.41 | I188: =SUM(I180:I187) -> 57.44 | J188: =SUM(J180:J187) -> 481.98 | L188: =SUM(L180:L187) -> 71.09
A189: =A180 -> 2 | B189: =B180 -> 5 | C189: Обед | D189: закуска
D190: 1 блюдо | E190: Суп с макаронными изделиями | F190: 250 | G190: 3.27 | H190: 3.15 | I190: 22.5 | J190: 130.89 | K190: 66.09 | L190: 15.84
D191: 2 блюдо | E191: Плов из мяса птицы | F191: 160 | G191: 12.67 | H191: 17.62 | I191: 31.04 | J191: 332.96 | K191: 131.07 | L191: 51.48
D192: гарнир
D193: напиток | E193: Чай с сахаром | F193: 200 | I193: 9.98 | J193: 39.9 | K193: 283 | L193: 1.90
D194: хлеб бел. | E194: Хлеб пшеничный обогащенный витаминами для детского питания | F194: 45 | G194: 3.6 | H194: 0.45 | I194: 24.75 | J194: 117 | K194: 420.05 | L194: 4.08
D195: хлеб черн. | E195: Хлеб ржано-пшеничный для детского питания | F195: 45 | G195: 3.6 | H195: 0.45 | I195: 20.7 | J195: 99 | K195: 421.13 | L195: 6.43
D198: итого | G198: =SUM(G190:G197) -> 23.14 | H198: 21.67 | I198: 108.97 | J198: 719.75 | L198: 79.73
A199: =A180 -> 2 | B199: =B180 -> 5 | C199: Итого за день: | G199: =G198+G188 -> 42.43 | H199: =H198+H188 -> 41.08 | I199: =I198+I188 -> 166.41 | J199: =J198+J188 -> 1201.73
